bitfinex/quotes_ETHUSD_20250426
["timestamp","ask_amount","ask_price","bid_price","bid_amount"]
[1745702972046,3.0,1815.1,1814.8,10.10019575]
[1745702975051,3.40338002,1815.1,1814.8,10.10019575]
[1745702975854,4.63678665,1815.1,1814.8,10.10019575]
[1745702976351,0.8271,1814.9,1814.6,5.51084626]
[1745702976524,0.8271,1814.9,1814.6,10.10169269]
[1745702976732,0.8271,1814.9,1814.6,15.61224602]
[1745702977441,0.8271,1814.9,1814.7,5.51053568]
[1745702983759,0.8271,1814.9,1814.8,0.10567971]
[1745702985059,1.66408504,1814.9,1814.8,0.10567971]
[1745702985353,3.0968354,1814.9,1814.4,17.3003]
[1745702985558,3.0968354,1814.9,1814.5,10.21523102]
[1745702986463,3.0968354,1814.9,1814.6,5.51076795]
[1745702986757,3.0968354,1814.9,1814.7,0.11322736]
[1745702986963,0.30968354,1814.8,1814.7,0.11322736]
[1745702988262,6.41968354,1814.8,1814.7,0.11322736]
[1745703000390,9.41968354,1814.8,1814.7,0.11322736]
[1745703004049,9.11,1814.8,1814.7,0.11322736]
[1745703004383,6.11,1814.8,1814.7,5.62378006]
[1745703005986,9.11,1815.0,1814.8,5.51010418]
[1745703006360,9.11,1815.0,1814.8,6.26550418]
[1745703006556,9.11,1815.0,1814.9,5.50994545]
[1745703007583,9.11,1815.0,1814.8,6.2654562]
[1745703013488,6.11,1815.0,1814.9,6.26724545]
[1745703014858,6.11,1815.3,1815.1,5.50918887]
[1745703015576,6.53012567,1815.6,1815.2,6.31763481]
[1745703015757,3.0,1815.5,1815.2,6.31763481]
[1745703016391,3.0,1815.5,1815.3,5.5087242]
[1745703017675,3.0,1815.5,1815.4,0.11264142]
[1745703023601,5.38514281,1815.5,1815.4,0.11264142]
[1745703023896,5.38514281,1815.5,1815.2,6.31762354]
[1745703024098,4.43275036,1815.5,1815.4,0.10875968]
[1745703024269,4.43275036,1815.5,1815.3,0.10880015]
[1745703024469,4.43275036,1815.5,1815.4,0.10875968]
[1745703024795,4.43275036,1815.5,1815.2,6.31762354]
[1745703025001,4.43275036,1815.5,1815.3,0.10880015]
[1745703027716,5.60682785,1815.5,1815.3,0.10880015]
[1745703027877,11.11508842,1815.5,1815.3,0.10880015]
[1745703028207,6.29269708,1815.4,1815.1,4.591]
[1745703028413,4.43275036,1815.3,1815.2,0.10838701]
[1745703028613,9.94148169,1815.3,1815.1,4.591]
[1745703028913,4.43275036,1815.3,1815.2,0.10868942]
[1745703029206,5.50529863,1815.3,1815.1,4.591]
[1745703029510,5.50529863,1815.3,1815.2,0.10868942]
[1745703030317,5.50529863,1815.3,1815.1,4.591]
[1745703030518,3.0,1815.3,1815.2,0.10889103]
[1745703031011,3.0,1815.3,1815.2,0.10914307]
[1745703031220,3.0,1815.3,1815.1,5.4]
[1745703031407,3.0,1815.3,1815.2,0.10914307]
[1745703031573,3.0,1815.3,1815.1,5.4]
[1745703031778,3.0,1815.3,1815.2,0.10914307]
[1745703032115,3.0,1815.3,1815.1,10.90933684]
[1745703032409,3.0,1815.3,1815.2,0.10914307]
[1745703032615,3.0,1815.3,1815.1,10.90933684]
[1745703032822,3.0,1815.3,1815.2,0.10914307]
[1745703033026,3.0,1815.3,1815.1,5.4]
[1745703033179,3.0,1815.3,1815.2,0.10914307]
[1745703033380,3.0,1815.3,1815.1,5.4]
[1745703033586,3.0,1815.3,1815.2,0.10914307]
[1745703033929,3.0,1815.3,1815.1,5.4]
[1745703034128,3.0,1815.3,1815.2,0.10914307]
[1745703034491,3.0,1815.3,1815.1,5.4]
[1745703034689,3.0,1815.3,1815.2,0.10914307]
[1745703035030,3.0,1815.3,1815.1,5.4]
[1745703035332,3.0,1815.3,1815.2,0.10914307]
[1745703035827,3.0,1815.3,1815.2,0.10989915]
[1745703036030,3.0,1815.3,1815.1,10.9092104]
[1745703036230,3.0,1815.3,1815.2,0.10989915]
[1745703036433,3.0,1815.3,1815.1,10.9092104]
[1745703036595,3.0,1815.3,1815.2,0.10974793]
[1745703036795,3.0,1815.3,1815.1,10.9092104]
[1745703036995,3.0,1815.3,1815.2,0.10974793]
[1745703037295,3.0,1815.3,1815.1,4.591]
[1745703037497,3.0,1815.3,1815.2,0.10974793]
[1745703037804,3.0,1815.3,1815.1,4.591]
[1745703038005,3.0,1815.3,1815.2,0.10974793]
[1745703038207,9.11,1815.3,1815.1,4.591]
[1745703038529,9.11,1815.3,1815.2,0.10974793]
[1745703038899,9.11,1815.3,1815.1,4.591]
[1745703039098,9.11,1815.3,1815.2,0.10974793]
[1745703039501,9.11,1815.3,1815.1,5.3497]
[1745703039695,9.11,1815.3,1815.2,0.10974793]
[1745703040134,9.11,1815.3,1815.1,5.3497]
[1745703040313,9.11,1815.3,1815.2,0.10979834]
[1745703040717,9.11,1815.3,1815.1,5.3497]
[1745703040918,9.11,1815.3,1815.2,0.10979834]
[1745703041336,9.11,1815.3,1815.1,5.3497]
[1745703041547,9.11,1815.3,1815.2,0.10979834]
[1745703041835,9.11,1815.3,1815.1,5.3497]
[1745703042133,9.11,1815.3,1815.2,0.10979834]
[1745703042437,9.11,1815.3,1815.1,5.3497]
[1745703042735,9.11,1815.3,1815.2,0.10979834]
[1745703043033,9.11,1815.3,1815.1,5.3497]
[1745703043199,9.11,1815.3,1815.2,0.10979834]
[1745703043398,9.11,1815.3,1815.1,5.3497]
[1745703043623,9.11,1815.3,1815.2,0.10979834]
[1745703043928,9.11,1815.3,1815.1,5.3497]
[1745703044133,9.11,1815.3,1815.2,0.10979834]
[1745703044432,9.11,1815.3,1815.1,0.7587]
[1745703044631,9.11,1815.3,1815.2,0.10979834]
[1745703044934,9.11,1815.3,1815.1,0.7587]
[1745703045124,9.11,1815.3,1815.2,0.10979834]
[1745703045525,9.11,1815.3,1815.1,0.7587]
[1745703045840,9.11,1815.3,1815.2,0.10979834]
[1745703046136,9.11,1815.3,1815.1,0.7587]
[1745703046431,9.11,1815.3,1815.2,0.10979834]
[1745703046608,9.11,1815.3,1815.1,0.7587]
[1745703046794,9.11,1815.3,1815.2,0.10979834]
[1745703046994,9.11,1815.3,1815.1,0.7587]
[1745703047253,9.11,1815.3,1815.2,0.10979834]
[1745703047414,9.11,1815.3,1815.1,0.7587]
[1745703047615,9.11,1815.3,1815.2,0.10979834]
[1745703047839,9.11,1815.3,1815.1,0.7587]
[1745703048138,9.11,1815.3,1815.2,0.10964712]
[1745703048506,9.11,1815.3,1815.1,0.7587]
[1745703048714,9.11,1815.3,1815.2,0.10964712]
[1745703049124,9.11,1815.3,1815.1,0.7587]
[1745703049441,9.11,1815.3,1815.2,0.10964712]
[1745703049645,9.11,1815.3,1815.1,0.7587]
[1745703050007,9.11,1815.3,1815.2,0.10964712]
[1745703050205,9.11,1815.3,1815.1,0.7587]
[1745703050443,9.11,1815.3,1815.2,0.10964712]
[1745703050638,9.11,1815.3,1815.1,0.7587]
[1745703050841,9.11,1815.3,1815.2,0.10964712]
[1745703051012,9.11,1815.3,1815.1,0.7587]
[1745703051218,9.11,1815.3,1815.2,0.10964712]
[1745703051547,9.11,1815.3,1815.1,0.7587]
[1745703051751,9.11,1815.3,1815.2,0.10964712]
[1745703052051,9.11,1815.3,1815.1,0.7587]
[1745703052346,9.11,1815.3,1815.2,0.10964712]
[1745703052651,9.11,1815.3,1815.1,0.7587]
[1745703052809,9.11,1815.3,1815.2,0.10964712]
[1745703053014,9.11,1815.3,1815.1,6.26803069]
[1745703053214,9.11,1815.3,1815.2,0.10964712]
[1745703053430,9.11,1815.3,1815.1,6.26803069]
[1745703053630,9.11,1815.3,1815.2,0.10964712]
[1745703053830,9.11,1815.3,1815.1,6.26803069]
[1745703054032,9.11,1815.3,1815.2,0.10964712]
[1745703054233,9.11,1815.3,1815.1,6.26803069]
[1745703054433,9.11,1815.3,1815.2,0.10964712]
[1745703054613,9.11,1815.3,1815.1,6.26803069]
[1745703054814,9.11,1815.3,1815.2,0.10964712]
[1745703055029,9.11,1815.3,1815.1,6.26803069]
[1745703055228,9.11,1815.3,1815.2,0.10964712]
[1745703055551,9.11,1815.3,1815.0,6.27014628]
[1745703055752,9.11,1815.3,1815.2,0.10964712]
[1745703055936,9.11,1815.3,1815.1,0.1096876]
[1745703056149,9.11,1815.3,1815.2,0.10964712]
[1745703056553,9.11,1815.3,1815.0,6.27014628]
[1745703056758,9.11,1815.3,1815.2,0.10964712]
[1745703056924,9.11,1815.3,1815.1,0.1096876]
[1745703057124,9.11,1815.3,1815.2,0.10964712]
[1745703057461,9.11,1815.3,1815.0,6.27014628]
[1745703057663,9.11,1815.3,1815.1,0.1096876]
[1745703060566,9.11,1815.3,1815.1,5.61897852]
[1745703061728,9.11,1815.3,1815.1,5.61883255]
[1745703062069,9.11,1815.3,1815.1,5.6188113]
[1745703062228,9.11,1815.3,1815.2,5.50903481]
[1745703062429,9.11,1815.3,1815.2,5.61853068]
[1745703063334,9.62650467,1815.3,1815.2,5.61853068]
[1745703063754,9.62650467,1815.3,1815.2,5.50903481]
[1745703067892,9.62650467,1815.3,1815.1,5.50923241]
[1745703068891,9.62650467,1815.3,1815.1,6.85087423]
[1745703069090,9.11,1815.3,1815.2,0.7546]
[1745703070156,9.62645171,1815.3,1815.2,0.7546]
[1745703071199,9.62645171,1815.3,1815.2,6.26363481]
[1745703072376,9.62645171,1815.3,1815.2,0.7546]
[1745703073299,3.51645171,1815.3,1815.2,0.7546]
[1745703080235,3.51645171,1815.3,1814.9,4.59]
[1745703080392,3.51645171,1815.3,1814.9,11.36673742]
[1745703080726,0.51645171,1815.2,1815.0,5.50953203]
[1745703081930,0.51645171,1815.1,1815.0,5.50953203]
[1745703086427,0.51645171,1815.1,1814.3,0.28776419]
[1745703086725,0.51645171,1815.1,1814.1,5.41752107]
[1745703086726,6.30044957,1815.0,1814.6,10.88295494]
[1745703086926,6.81690128,1815.0,1814.6,14.1758504]
[1745703087425,3.0,1814.9,1814.6,14.1758504]
[1745703088123,0.51645171,1814.8,1814.6,14.1758504]
[1745703089846,0.51645171,1814.8,1814.6,13.3937504]
[1745703090504,0.51645171,1814.8,1814.6,10.10085494]
[1745703090829,6.62645171,1814.8,1814.6,10.10085494]
[1745703092635,0.30961528,1814.7,1814.6,10.10085494]
[1745703095741,6.11,1814.8,1814.6,10.10085494]
[1745703096827,9.11,1814.9,1814.6,15.61148903]
[1745703097368,0.30928426,1814.8,1814.6,15.61148903]
[1745703097540,0.30928426,1814.8,1814.7,5.5105527]
[1745703097841,0.82471739,1814.8,1814.7,5.5105527]
[1745703098715,0.82471739,1814.8,1814.6,10.10066666]
[1745703099219,0.51543313,1814.8,1814.6,10.10066666]
[1745703099417,9.11,1814.9,1814.6,10.10066666]
[1745703100738,0.30919583,1814.8,1814.6,10.10066666]
[1745703101656,9.11,1814.9,1814.6,10.10066666]
[1745703102765,0.51530967,1814.8,1814.6,10.10066666]
[1745703104056,9.11,1814.9,1814.6,10.10066666]
[1745703104752,0.30919583,1814.8,1814.6,10.10066666]
[1745703105255,9.11,1814.9,1814.6,10.10066666]
[1745703105756,0.51534363,1814.8,1814.6,10.10066666]
[1745703106648,0.51534363,1814.8,1814.7,5.5105527]
[1745703107452,0.51534363,1814.8,1814.6,10.10067759]
[1745703107657,0.82459908,1814.8,1814.6,10.10067759]
[1745703108358,0.30925545,1814.8,1814.6,10.10067759]
[1745703108660,9.11,1814.9,1814.6,10.10067759]
[1745703110526,0.82502741,1814.8,1814.6,10.10067759]
[1745703111139,0.30938529,1814.7,1814.6,10.10067759]
[1745703111558,0.82502741,1814.7,1814.6,10.10067759]
[1745703112727,0.82502741,1814.7,1814.6,10.20523298]
[1745703117775,0.82502741,1814.7,1814.6,10.99833298]
[1745703117925,0.82502741,1814.7,1814.6,12.56995713]
[1745703118259,0.82502741,1814.7,1814.6,11.77685713]
[1745703118568,0.82502741,1814.7,1814.6,12.56995713]
[1745703119064,0.82502741,1814.7,1814.6,7.97995713]
[1745703127269,0.82502741,1814.7,1814.6,7.18685713]
[1745703128667,0.82502741,1814.7,1814.6,11.77685713]
[1745703129841,0.82502741,1814.7,1814.6,12.57585713]
[1745703131170,0.82502741,1814.7,1814.6,12.57603592]
[1745703131968,6.11,1815.1,1814.8,5.51024906]
[1745703132173,6.11,1815.2,1814.8,5.51024906]
[1745703132336,7.65479013,1815.2,1814.9,5.61375684]
[1745703132536,0.30974387,1815.1,1814.9,5.61375684]
[1745703133683,0.30974387,1815.0,1814.9,5.61375684]
[1745703134480,0.30974387,1815.0,1814.9,6.40005684]
[1745703134774,0.30974387,1815.1,1815.0,5.50964187]
[1745703135141,0.30974387,1815.1,1815.0,5.61343082]
[1745703135780,6.11,1815.2,1815.0,5.61343082]
[1745703136780,6.11,1815.2,1815.0,5.61322439]
[1745703137075,6.11,1815.2,1815.0,10.09843544]
[1745703137879,3.829,1815.3,1815.0,10.09843544]
[1745703138082,6.6709598,1815.3,1815.0,4.589]
[1745703138259,5.23820944,1815.3,1815.0,4.589]
[1745703138447,5.23820944,1815.3,1815.0,10.09860994]
[1745703138657,5.23820944,1815.3,1815.0,4.589]
[1745703139165,0.30927404,1815.2,1815.0,4.589]
[1745703139495,0.30927404,1815.2,1815.0,10.09855855]
[1745703139896,4.24430944,1815.3,1815.0,10.09855855]
[1745703141694,0.30919813,1815.2,1815.0,10.09855855]
[1745703143399,0.30919813,1815.2,1815.0,10.09841652]
[1745703145701,0.30919813,1815.2,1815.0,4.589]
[1745703145907,0.30919813,1815.2,1815.0,10.09852859]
[1745703147521,0.30919813,1815.2,1815.0,10.09843525]
[1745703147689,0.30919813,1815.2,1815.0,15.60785107]
[1745703148090,0.30919813,1815.2,1815.1,5.50933832]
[1745703148524,3.41530944,1815.3,1815.1,5.50933832]
[1745703149525,9.52530944,1815.3,1815.1,5.50933832]
[1745703151030,0.30917727,1815.2,1815.1,5.50933832]
[1745703152492,6.11,1815.3,1815.2,5.50903481]
[1745703152736,10.30474046,1815.5,1815.2,5.50903481]
[1745703153405,0.30916448,1815.4,1815.2,5.50903481]
[1745703154356,0.30916448,1815.3,1815.2,5.50903481]
[1745703155246,0.30916448,1815.4,1815.2,5.50903481]
[1745703156059,0.30916448,1815.3,1815.2,5.50903481]
[1745703157045,0.30916448,1815.4,1815.2,5.50903481]
[1745703157542,0.30916448,1815.3,1815.2,5.50903481]
[1745703176361,0.30916448,1815.3,1815.2,6.50933467]
[1745703179961,6.11,1815.5,1815.4,5.50842789]
[1745703180453,6.4197567,1815.5,1815.4,5.50842789]
[1745703184850,0.3097567,1815.5,1815.4,5.50842789]
[1745703194281,6.11,1815.6,1815.5,5.50812448]
[1745703195251,6.41938187,1815.6,1815.5,5.50812448]
[1745703197383,6.11,1816.4,1815.5,6.28352448]
[1745703197572,0.8126,1816.3,1816.0,5.50640125]
[1745703197775,6.11,1816.1,1816.0,5.50640125]
[1745703200563,7.54275036,1816.4,1816.1,5.50600366]
[1745703200888,8.37345036,1816.4,1816.1,5.50600366]
[1745703201590,8.37345036,1816.4,1816.1,11.01205418]
[1745703201769,8.37345036,1816.4,1816.1,5.50600366]
[1745703203792,8.37345036,1816.4,1816.1,11.01206891]
[1745703204493,8.37345036,1816.4,1816.2,5.50598415]
[1745703209600,7.54275036,1816.4,1816.2,6.31378415]
[1745703209987,6.11,1816.4,1816.2,11.81958008]
[1745703210167,6.11,1816.4,1816.2,6.31359593]
[1745703210799,6.11,1816.4,1816.2,5.50579593]
[1745703211198,9.11,1816.5,1816.2,5.50579593]
[1745703213588,9.11,1816.5,1816.2,5.50577876]
[1745703213791,9.11,1816.5,1816.3,5.50569419]
[1745703214596,9.11,1816.5,1816.3,5.50551854]
[1745703217811,9.11,1816.5,1816.4,5.50539528]
[1745703217980,9.11,1816.5,1816.2,5.76497285]
[1745703218304,6.11,1816.5,1816.3,5.50540255]
[1745703218708,6.11,1816.5,1816.4,5.50539528]
[1745703219013,6.11,1816.9,1816.7,5.50448615]
[1745703219618,0.8179,1817.0,1816.6,10.08773135]
[1745703219820,0.8179,1817.2,1816.9,11.0075829]
[1745703219977,0.8179,1817.2,1817.0,5.50354195]
[1745703220179,0.8179,1817.2,1817.0,5.50334136]
[1745703222312,3.8179,1817.3,1817.0,10.08534136]
[1745703222528,9.9279,1817.3,1817.1,5.5031727]
[1745703223394,9.9279,1817.3,1817.0,10.08538949]
[1745703223595,9.9279,1817.3,1817.0,11.6443007]
[1745703224519,9.9279,1817.3,1817.1,5.50326748]
[1745703224818,9.9279,1817.3,1817.0,11.64434475]
[1745703226721,9.9279,1817.3,1817.0,11.64435295]
[1745703227525,9.9279,1817.3,1817.0,11.6442524]
[1745703227697,9.9279,1817.3,1817.1,6.66750511]
[1745703228097,9.9279,1817.3,1817.1,1.16442524]
[1745703228704,9.9279,1817.3,1817.1,6.66752409]
[1745703229399,9.9279,1817.3,1817.1,1.16442524]
[1745703230021,9.11,1817.3,1817.1,1.16442524]
[1745703230222,9.11,1817.3,1817.1,6.66746234]
[1745703230429,9.11,1817.3,1817.2,0.66674623]
[1745703231493,6.11,1817.3,1817.2,6.16971783]
[1745703231719,6.11,1817.3,1817.2,0.66674623]
[1745703234720,8.30835036,1817.4,1817.1,1.16442524]
[1745703236732,8.30835036,1817.4,1817.1,6.66769533]
[1745703238432,8.30835036,1817.4,1817.1,1.16442524]
[1745703239134,12.37797443,1817.4,1817.1,1.16442524]
[1745703239314,13.81072479,1817.4,1817.1,1.16442524]
[1745703243234,13.81072479,1817.4,1817.1,5.74442524]
[1745703244165,8.30835036,1817.4,1817.1,5.74442524]
[1745703244456,8.30835036,1817.4,1817.1,11.24766686]
[1745703245637,8.30835036,1817.4,1817.1,5.74442524]
[1745703245800,8.30835036,1817.4,1817.1,4.58]
[1745703246004,1.43275036,1817.3,1817.1,10.08325841]
[1745703246932,1.43275036,1817.3,1817.1,4.58]
[1745703248009,1.43275036,1817.3,1817.1,10.08325777]
[1745703249439,1.43275036,1817.3,1817.1,4.58]
[1745703250146,1.43275036,1817.3,1817.1,10.08327041]
[1745703251138,1.43275036,1817.3,1817.1,4.58]
[1745703253023,1.43275036,1817.3,1817.1,10.08308153]
[1745703253855,1.43275036,1817.3,1817.1,4.58]
[1745703255458,5.5029716,1817.2,1817.1,4.58]
[1745703255661,5.50370334,1817.0,1816.8,4.579]
[1745703255836,2.24055036,1816.9,1816.5,21.8848]
[1745703256159,5.50421855,1816.8,1816.5,21.095]
[1745703256727,0.30924574,1816.7,1816.5,21.095]
[1745703257336,0.30924574,1816.7,1816.5,26.59997137]
[1745703257555,0.30924574,1816.7,1816.5,28.7136253]
[1745703257735,0.30924574,1816.6,1816.5,28.7136253]
[1745703257940,0.30924574,1816.6,1816.5,12.1976253]
[1745703258457,0.30924574,1816.6,1816.5,6.69265393]
[1745703258660,6.11,1816.8,1816.5,6.69265393]
[1745703259063,6.11,1816.8,1816.5,4.579]
[1745703259659,0.30883897,1816.7,1816.5,10.08407476]
[1745703260458,6.11,1816.8,1816.5,10.08407476]
[1745703260959,13.85457138,1816.9,1816.5,10.08407476]
[1745703261162,0.30875578,1816.8,1816.5,10.08407476]
[1745703261350,0.30875578,1816.8,1816.5,11.64299815]
[1745703262051,0.30875578,1816.7,1816.5,11.64299815]
[1745703262667,13.85457138,1816.9,1816.5,11.64299815]
[1745703262834,13.85457138,1816.9,1816.5,10.08407476]
[1745703263861,0.3085779,1816.8,1816.5,10.08407476]
[1745703264166,0.3085779,1816.8,1816.5,10.08395029]
[1745703264673,0.3085779,1816.7,1816.5,10.08395029]
[1745703264877,0.3085779,1816.7,1816.5,4.579]
[1745703265463,0.3085779,1816.7,1816.5,10.08407764]
[1745703265959,13.85454631,1816.9,1816.5,10.08407764]
[1745703266266,19.35869326,1816.9,1816.5,4.579]
[1745703266959,0.30848817,1816.8,1816.5,4.579]
[1745703267867,0.30848817,1816.7,1816.5,4.579]
[1745703268069,0.30848817,1816.7,1816.5,6.13793489]
[1745703268467,0.30848817,1816.8,1816.5,6.13793489]
[1745703272474,5.81267471,1816.8,1816.5,6.13793489]
[1745703272853,11.92267471,1816.8,1816.5,4.579]
[1745703273055,0.7989,1816.7,1816.5,4.579]
[1745703273253,1.10738817,1816.7,1816.5,4.579]
[1745703273576,6.61193253,1816.7,1816.5,4.579]
[1745703274080,6.30344436,1816.7,1816.5,4.579]
[1745703274250,6.11,1816.6,1816.5,4.579]
[1745703274454,11.61478916,1816.6,1816.5,4.579]
[1745703274947,11.92327185,1816.6,1816.5,4.579]
[1745703275847,5.50560631,1816.4,1816.2,4.58]
[1745703276047,6.93835667,1816.4,1816.2,4.58]
[1745703276254,13.04835667,1816.4,1816.2,4.58]
[1745703276656,8.04524091,1816.4,1816.2,4.58]
[1745703276854,6.11,1816.4,1816.2,4.58]
[1745703277155,6.11,1816.4,1816.2,10.85809049]
[1745703277665,6.11,1816.4,1816.3,5.50569839]
[1745703281477,6.9089,1816.7,1816.3,5.50569839]
[1745703281690,6.9089,1816.7,1816.4,5.5053703]
[1745703283181,6.9089,1816.7,1816.4,5.50537355]
[1745703283479,0.3087292,1816.6,1816.4,5.50537355]
[1745703284787,6.9089,1816.7,1816.4,5.50537355]
[1745703286489,0.30921326,1816.6,1816.4,5.50537355]
[1745703286675,0.30921326,1816.6,1816.4,6.16449089]
[1745703287393,6.9089,1816.7,1816.4,6.16449089]
[1745703288994,0.30922608,1816.6,1816.4,6.16449089]
[1745703289207,0.8069,1816.5,1816.2,4.58]
[1745703289385,6.31216477,1816.5,1816.2,4.58]
[1745703289892,0.30922608,1816.4,1816.2,4.58]
[1745703290995,0.30922608,1816.3,1816.2,4.58]
[1745703292298,1.07862608,1816.3,1816.2,4.58]
[1745703293297,7.18862608,1816.3,1816.2,4.58]
[1745703295712,7.70382002,1816.3,1816.2,4.58]
[1745703296991,6.93442002,1816.3,1816.2,10.91180154]
[1745703297177,6.93442002,1816.3,1816.2,10.54400154]
[1745703298407,6.41922608,1816.3,1816.2,10.54400154]
[1745703298607,6.11,1816.3,1816.2,10.54400154]
[1745703299210,3.0,1816.5,1816.2,10.54400154]
[1745703299703,0.30910943,1816.4,1816.2,4.58]
[1745703300310,0.30910943,1816.3,1816.2,4.58]
[1745703302887,0.30910943,1816.3,1816.2,10.08600154]
[1745703303789,0.30910943,1816.3,1816.2,4.58]
[1745703309616,0.30918793,1816.3,1816.2,4.58]
[1745703319492,0.30918793,1816.3,1816.1,5.50608495]
[1745703320328,0.30918793,1816.2,1816.1,5.50608495]
[1745703321632,0.82532465,1816.2,1816.1,5.50608495]
[1745703325127,0.30918793,1816.2,1816.1,5.50608495]
[1745703329338,1.09728793,1816.2,1815.8,0.7673]
[1745703329640,5.50649644,1816.1,1815.8,4.579]
[1745703329817,9.29489212,1816.0,1815.8,4.579]
[1745703330013,9.60408005,1816.0,1815.8,4.579]
[1745703330410,15.71408005,1816.0,1815.8,4.579]
[1745703330746,15.71408005,1816.0,1815.6,4.579]
[1745703330747,11.61693677,1815.9,1815.6,4.579]
[1745703331041,0.30918793,1815.8,1815.6,4.579]
[1745703331625,0.30918793,1815.8,1815.7,0.21727578]
[1745703334142,0.30910668,1815.8,1815.7,0.21727578]
[1745703335311,12.0333326,1815.9,1815.7,0.21727578]
[1745703338232,14.16614137,1815.9,1815.7,0.21727578]
[1745703340344,6.11,1815.8,1815.7,0.21727578]
[1745703351961,6.52639583,1815.9,1815.7,0.21727578]
[1745703353630,0.30897483,1815.8,1815.7,0.21727578]
[1745703355542,0.30897483,1815.8,1815.6,5.50782062]
[1745703355744,0.30897483,1815.8,1815.7,0.21631788]
[1745703358568,0.30944991,1815.8,1815.5,15.59489822]
[1745703358870,0.30944991,1815.8,1815.7,0.2163682]
[1745703359269,0.30944991,1815.8,1815.6,5.50778324]
[1745703359438,0.30944991,1815.8,1815.7,0.2163682]
[1745703361946,0.8257312,1815.8,1815.7,0.2163682]
[1745703362151,0.8257312,1815.8,1815.7,0.21596568]
[1745703362363,0.8257312,1815.8,1815.5,10.08700028]
[1745703362539,0.8257312,1815.8,1815.7,0.21596568]
[1745703362938,2.11108935,1815.8,1815.7,0.21596568]
[1745703363166,2.11108935,1815.8,1815.5,10.08700028]
[1745703363368,0.8257312,1815.8,1815.5,10.08700028]
[1745703363539,0.8257312,1815.8,1815.6,0.21601289]
[1745703363735,0.30944991,1815.7,1815.6,0.21601289]
[1745703364587,0.30944991,1815.7,1815.6,5.72383399]
[1745703367384,0.30944991,1815.7,1815.6,6.55323399]
[1745703367735,0.30944991,1815.7,1815.6,7.75936675]
[1745703370392,6.11,1815.9,1815.8,5.50721445]
[1745703370604,6.11,1815.9,1815.8,6.48988262]
[1745703370798,6.4197001,1815.9,1815.8,6.48988262]
[1745703371975,6.11,1815.9,1815.8,6.48988262]
[1745703372188,6.11,1815.9,1815.8,7.68961171]
[1745703375510,6.9225,1816.2,1815.8,13.19682616]
[1745703375683,6.9225,1816.2,1815.9,5.50688893]
[1745703375870,0.30923276,1816.1,1815.9,5.50688893]
[1745703376071,0.30923276,1816.1,1816.0,0.21475871]
[1745703379925,0.30923276,1816.1,1815.8,7.47363181]
[1745703380130,0.30923276,1816.1,1816.0,0.21477687]
[1745703380338,0.30923276,1816.1,1815.9,0.21482405]
[1745703380627,0.30923276,1816.1,1816.0,0.21477687]
[1745703380827,0.30923276,1816.1,1815.8,6.27390272]
[1745703381029,13.86127633,1816.2,1815.8,7.90993187]
[1745703381193,13.86127633,1816.2,1815.9,0.21483314]
[1745703382764,0.30912268,1816.1,1815.9,0.21483314]
[1745703383297,0.30912268,1816.1,1815.9,5.72150249]
[1745703383729,0.30912268,1816.2,1815.9,11.22818953]
[1745703384039,0.30912268,1816.2,1815.9,5.72150249]
[1745703384635,0.30912268,1816.1,1815.9,5.72150249]
[1745703385730,0.30912268,1816.2,1815.9,5.72150249]
[1745703386431,0.30912268,1816.2,1815.9,6.92103749]
[1745703386635,0.30912268,1816.1,1816.0,0.7554]
[1745703386932,0.30912268,1816.1,1816.0,0.96968283]
[1745703387513,0.30912268,1816.2,1816.0,0.96968283]
[1745703388635,0.30912268,1816.2,1816.0,6.4762662]
[1745703388941,0.30912268,1816.1,1816.0,0.96968283]
[1745703389809,0.30912268,1816.2,1816.0,0.96968283]
[1745703390535,0.30912268,1816.1,1816.0,0.96968283]
[1745703391437,7.24787935,1816.2,1816.0,0.21428283]
[1745703391633,0.7566,1816.0,1815.7,4.579]
[1745703391822,8.50702585,1815.9,1815.8,0.21382379]
[1745703392608,9.56784853,1815.9,1815.8,0.21382379]
[1745703393836,0.7517,1815.4,1815.2,16.528]
[1745703394016,2.18445036,1815.4,1815.3,4.79205979]
[1745703394217,2.49357304,1815.4,1815.3,4.79205979]
[1745703394839,11.00200093,1815.4,1815.3,4.79205979]
[1745703395035,11.00200093,1815.4,1815.3,0.21405979]
[1745703395212,12.35826666,1815.4,1815.3,0.21405979]
[1745703396036,5.50892856,1815.3,1814.8,10.08812053]
[1745703396220,1.43275036,1815.2,1814.8,10.08812053]
[1745703396542,0.7782,1815.1,1814.8,4.578]
[1745703396752,6.9424153,1815.0,1814.8,4.578]
[1745703397844,6.26327738,1815.0,1814.8,4.578]
[1745703398443,6.26327738,1815.0,1814.5,32.91243002]
[1745703398742,5.50966494,1815.0,1814.5,36.20367302]
[1745703399930,5.50966494,1815.0,1814.5,36.20367357]
[1745703400123,5.50966494,1815.0,1814.6,5.51083766]
[1745703400622,5.50966494,1815.0,1814.7,0.20454567]
[1745703401636,0.7782,1814.9,1814.5,26.61798602]
[1745703401836,6.8882,1814.9,1814.6,0.20459293]
[1745703402635,13.15189063,1814.9,1814.6,0.20459293]
[1745703402837,7.64181244,1814.9,1814.6,0.20459293]
[1745703403850,7.64181244,1814.9,1814.6,5.71542096]
[1745703404018,6.8882,1814.9,1814.6,5.71542096]
[1745703404416,6.8882,1814.9,1814.6,8.94876166]
[1745703404629,6.8882,1814.9,1814.6,5.71542096]
[1745703410419,12.39816474,1814.9,1814.6,0.20459293]
[1745703412558,5.51029064,1814.8,1814.6,0.20459293]
[1745703415261,8.05338192,1814.9,1814.6,0.20459293]
[1745703415262,13.56351773,1814.9,1814.6,0.20459293]
[1745703415566,14.28830566,1814.9,1814.6,0.20459293]
[1745703416456,6.11,1814.8,1814.6,0.20459293]
[1745703419163,6.11,1814.8,1814.7,5.5105527]
[1745703419459,6.11,1814.8,1814.7,5.71871683]
[1745703420063,6.11,1814.8,1814.7,0.20816413]
[1745703420230,6.11,1814.8,1814.7,5.71871683]
[1745703420434,6.11,1814.8,1814.7,0.20816413]
[1745703421431,6.11,1814.8,1814.7,5.71871683]
[1745703422433,3.0,1814.9,1814.7,5.71871683]
[1745703422663,3.0,1814.9,1814.7,0.20816413]